Cogmind - Beta 13 @@@ ROGUE MODE // 2024.04.02 @ 18:29:58 Player: BigMaxPorter Result: Destroyed by G-47 Trooper with Particle Gun Performance ------------- Evolutions (3) 1500 Regions Visited (6) 1200 Robots Destroyed (61) 305 Value Destroyed (1971) 1971 Prototype IDs (2) 40 Alien Tech Used (0) 0 Bonus (137) 137 TOTAL SCORE: 5153 Bonus ------- High Alert Combat Kills 102 Follower Combat Kills 35 Cogmind --------- Core Integrity 0/700 Matter 0/300 Energy 100/100 System Corruption 3% Temperature Cool (9) Movement Core (300) Ox5 Location -7/Factory Parts ------- > --- POWER (2) -------- (None) > --- PROPULSION (4) --- (None) > --- UTILITY (4) ------ Small Storage Unit Signal Interpreter > --- WEAPON (3) ------- Precision Grenade Launcher Precision Grenade Launcher > --- INVENTORY (8) ---- Targeting Computer ECM Suite Hardlight Generator Peak State ------------ > --- POWER ------------ Micro Nuclear Core Makeshift Power Source > --- PROPULSION ------- Aluminum Leg VTOL Module VTOL Module VTOL Module > --- UTILITY ---------- Small Storage Unit Visual Processing Unit Signal Interpreter Hardened Medium Armor Plating > --- WEAPON ----------- Heavy Laser Autogun Autogun > --- INVENTORY -------- Targeting Computer ECM Suite Hardlight Generator Pulse Rifle Heavy Assault Rifle Shotgun Improved Grenade Launcher Precision Grenade Launcher [Rating: 32] Favorites ----------- Power Light Ion Engine Engine Light Ion Engine Power Core Micro Nuclear Core Propulsion Aluminum Leg Leg Aluminum Leg Flight Unit VTOL Module Utility Signal Interpreter Device Seismic Detector Storage Small Storage Unit Processor Signal Interpreter Protection Hardened Medium Armor Plating Weapon Pulse Rifle Energy Gun Pulse Rifle Energy Cannon Advanced Beam Cannon Ballistic Gun Autogun Ballistic Cannon Assault Cannon Launcher Grenade Launcher Build | -11 -10 -10 -9 -9 -8 -7 ------- Run | Yrd Mat Min Mat Min Mat Fac Slots Evolved 6 | . . . 2 . 2 2 Power 1 | . . . . . 1 . Propulsion 2 | . . . 1 . . 1 Utility 2 | . . . 1 . . 1 Weapon 1 | . . . . . 1 . Parts Attached 86 | 6 3 4 32 4 17 20 Power 12 | 1 . 1 4 1 4 1 Engine 11 | 1 . 1 4 1 4 . Core 1 | . . . . . . 1 Reactor . | . . . . . . . Propulsion 23 | 2 . . 11 2 4 4 Treads . | . . . . . . . Leg 20 | 2 . . 11 2 4 1 Wheel . | . . . . . . . Hover . | . . . . . . . Flight 3 | . . . . . . 3 Utility 12 | 1 2 . 6 1 1 1 Device 6 | . 1 . 5 . . . Storage 2 | 1 . . . 1 . . Processor 2 | . 1 . . . 1 . Hackware . | . . . . . . . Protection 2 | . . . 1 . . 1 Artifact . | . . . . . . . Weapon 39 | 2 1 3 11 . 8 14 Energy Gun 19 | 1 1 2 7 . 5 3 Energy Cannon 1 | . . . 1 . . . Ballistic Gun 7 | 1 . . . . . 6 Ballistic Cannon 1 | . . . . . 1 . Launcher 11 | . . 1 3 . 2 5 Special Weapon . | . . . . . . . Impact Weapon . | . . . . . . . Slashing Weapon . | . . . . . . . Piercing Weapon . | . . . . . . . Special Melee Weapon . | . . . . . . . Unidentified Prototypes 2 | . . . 1 . . 1 Parts Lost 39 | . . 1 11 1 6 20 Power 6 | . . . 2 . 2 2 Propulsion 13 | . . . 4 . 2 7 Utility 5 | . . . 2 1 . 2 Weapon 15 | . . 1 3 . 2 9 Highest Loss Streak 16 | . . 1 6 1 4 16 To Critical Strikes 1 | . . . 1 . . . Average Slot Usage (%) 89 | . 97 99 88 96 92 73 Engine 11 | . 14 14 10 11 15 6 Leg 24 | . 28 28 27 33 23 10 Device 10 | . 11 14 17 11 7 . Storage 4 | . 7 . . 7 9 7 Processor 11 | . 6 14 11 11 10 13 Protection 1 | . . . 2 . . 5 Energy Gun 19 | . 27 27 17 22 22 8 Ballistic Cannon 1 | . . . . . 3 3 Naked Turns . | . . . . . . . Heaviest Build 35 | 13 15 12 17 15 32 35 Greatest Support 40 | 20 20 20 30 35 40 30 Greatest Overweight (x) 8 | 1 . . 4 . 1 8 Average Overweight (x) . | . . . . . . 2 Largest Inventory Capacity 8 | 8 8 5 5 8 8 8 Average Capacity 6 | 7 6 5 5 6 8 8 Most Carried 8 | 6 8 5 5 8 8 8 Average Carried 5 | 2 6 4 3 6 7 6 Final Capacity 8 | 8 5 5 5 8 8 8 Final Carried 8 | 6 5 4 5 8 8 3 Class Distribution -------------------- 59% | Mutant 13% | Scavenger-Gunner 8% | Scavenger-Tank 6% | Skirmisher 3% | Tank 3% | Gunner Dominant Class ---------------- Mutant | -10/Materials Mutant | -10/Mines Mutant | -9/Materials Mutant | -9/Mines Scavenger-Gunner | -8/Materials Scavenger-Tank | -7/Factory Resources | -11 -10 -10 -9 -9 -8 -7 ----------- Run | Yrd Mat Min Mat Min Mat Fac Matter Collected 1048 | 218 72 36 296 59 232 135 Remotely . | . . . . . . . Salvage Created 1561 | . 65 168 632 109 301 286 Parts 83 | . 6 5 41 8 11 12 Haulers Intercepted . | . . . . . . . Recyclers Shooed 1 | . . . 1 . . . Parts Field Recycled . | . . . . . . . Retrieved Matter . | . . . . . . . Parts Self-Destructed . | . . . . . . . Prevented . | . . . . . . . Kills | -11 -10 -10 -9 -9 -8 -7 ------- Run | Yrd Mat Min Mat Min Mat Fac Combat Hostiles Destroyed 53 | . 2 4 23 6 9 9 Guns 35 | . 2 3 13 6 5 6 Cannons 1 | . . . . . 1 . AOE 16 | . . 1 10 . 2 3 Classes Destroyed 9 | . 2 1 2 . 2 2 Worker 2 | . . . 2 . . . Builder 2 | . . . . . 1 1 Tunneler 2 | . . . . . 2 . Watcher 2 | . 1 . 1 . . . Swarmer 19 | . 2 . 9 4 . 4 Grunt 25 | . . 4 8 2 8 3 Sentry 7 | . . . 6 . 1 . Hunter 1 | . . . . . . 1 Programmer 1 | . . . . . . 1 Best Kill Streak 10 | . 2 2 10 4 6 5 Combat Bots Only 9 | . 2 2 9 4 3 4 Max Kills in Single Turn 3 | . 1 1 3 1 2 1 Gunslinging . | . . . . . . . Exploded 3 | . . 1 3 . 2 1 Melee . | . . . . . . . Uniques/NPCs Destroyed . | . . . . . . . Combat | -11 -10 -10 -9 -9 -8 -7 -------- Run | Yrd Mat Min Mat Min Mat Fac Hostile Shots Fired 432 | . 10 16 182 24 52 148 Missed 128 | . 5 4 64 7 12 36 Damage Taken 4560 | . 44 183 1432 161 630 2110 Core 1214 | . 10 51 278 36 126 713 Absorbed by Shields . | . . . . . . . Regen/Repaired (Parts) 32 | . . . 32 . . . Core Remaining (%) 68 | 100 . 75 . 21 77 . Volleys Fired 127 | . 9 12 40 11 22 33 Largest 3 | . 2 2 2 2 3 3 Hottest 189 | . 80 80 126 126 189 169 Shots Fired 256 | . 18 21 67 22 62 66 Gun 217 | . 18 20 60 22 45 52 Cannon 17 | . . . . . 11 6 Launcher 22 | . . 1 7 . 6 8 Special . | . . . . . . . Kinetic 33 | . . . . . 11 22 Thermal 163 | . . . 60 22 45 36 Explosive 22 | . . 1 7 . 6 8 Electromagnetic 38 | . 18 20 . . . . Robot Hit Streak 12 | . 3 3 9 12 11 7 Robot Miss Streak 6 | . 6 2 3 2 5 4 Penetration Max . | . . . . . . . Secondary Targets 5 | . 1 . 4 . . . Max Gunslinging Chain 1 | . 1 . 1 . . . Shots Hit Robots 145 | . 5 11 40 16 37 36 Core Hits 99 | . 3 6 40 6 22 22 Critical Kills . | . . . . . . . Critical Parts Destroyed . | . . . . . . . Critical Strikes 12 | . . 1 2 2 4 3 Burn 11 | . . . 2 2 4 3 Corrupt 1 | . . 1 . . . . Melee Attacks . | . . . . . . . Impact . | . . . . . . . Slashing . | . . . . . . . Piercing . | . . . . . . . Sneak Attacks . | . . . . . . . Combat Hostiles . | . . . . . . . Follow-up Attacks . | . . . . . . . Damage Inflicted 4338 | . 80 210 1428 289 1413 918 Guns 2074 | . 80 131 616 289 504 454 Cannons 258 | . . . . . 168 90 Explosions 1975 | . . 79 781 . 741 374 Melee . | . . . . . . . Ramming 31 | . . . 31 . . . Kinetic 374 | . . . . . 168 206 Thermal 1747 | . . . 616 289 504 338 Explosive 1975 | . . 79 781 . 741 374 Electromagnetic 211 | . 80 131 . . . . Impact . | . . . . . . . Slashing . | . . . . . . . Piercing . | . . . . . . . Highest Corruption 3 | . . . . . . 3 Average Corruption 2 | . . . . . . 2 Corruption Purged . | . . . . . . . Corruption Blocked . | . . . . . . . Effects 2 | . . . . . . 2 Message Errors 1 | . . . . . . 1 Matter Fused 1 | . . . . . . 1 Overload Shots . | . . . . . . . Overflow Damage 85 | . . . 23 . 16 46 Projectiles . | . . . . . . . Explosions 85 | . . . 23 . 16 46 Melee . | . . . . . . . Knockbacks 6 | . . . . . 4 2 Impact . | . . . . . . . Kinetic 6 | . . . . . 4 2 Secondary . | . . . . . . . Self-Inflicted Damage 354 | . . 32 157 . . 165 Shots 11 | . . 1 5 . . 5 Rammed . | . . . . . . . Targets Rammed 8 | . . . 8 . . . Kicked 8 | . . . 8 . . . Crushed . | . . . . . . . Highest Temperature 775 | . 72 174 369 266 477 775 Average Temperature 175 | . 26 75 108 144 207 278 Received Heat Transfer 1542 | . . 108 414 48 396 576 Effects 50 | . . . 2 1 10 37 Shutdowns 16 | . . . . . 3 13 Energy Bleed 12 | . . . 2 1 1 8 Interference 8 | . . . . . 2 6 Matter Decay 3 | . . . . . . 3 Short Circuit 2 | . . . . . 1 1 Damage (minor) 4 | . . . . . . 4 Damage (major) 3 | . . . . . 3 . Damage (core) 2 | . . . . . . 2 Siege Activations . | . . . . . . . Robots Corrupted . | . . . . . . . Combat Hostiles . | . . . . . . . Parts Fried 1 | . . 1 . . . . Impact Corruptions . | . . . . . . . Robots Melted 1 | . . . . . 1 . Combat Hostiles 1 | . . . . . 1 . Parts Melted 6 | . . . 1 . 4 1 Heat Transferred 4625 | . . . 1517 777 1443 888 Parts Sabotaged . | . . . . . . . Parts Stolen . | . . . . . . . Parts Stripped . | . . . . . . . Power Chain Reactions . | . . . . . . . Alert | -11 -10 -10 -9 -9 -8 -7 ------- Run | Yrd Mat Min Mat Min Mat Fac Peak Influence 683 | . 106 184 683 397 394 400 Initial 246 | . . 40 71 246 154 88 Average 240 | . 61 114 427 342 217 168 Maximum Alert Level 2 | . . . 2 1 1 2 Low Security (%) 55 | 100 100 100 23 . 49 70 Level 1 26 | . . . 14 100 50 29 Level 2 17 | . . . 62 . . . Level 3 . | . . . . . . . Level 4 . | . . . . . . . Level 5 . | . . . . . . . High Security . | . . . . . . . Max Security . | . . . . . . . Squads Dispatched 9 | . 1 . 2 . 2 4 Investigation 3 | . . . 1 . 1 1 Extermination . | . . . . . . . Reinforcement 4 | . 1 . 1 . 1 1 Assault . | . . . . . . . Garrison 2 | . . . . . . 2 Intercept . | . . . . . . . Searches Triggered . | . . . . . . . Construction Impeded 1 | . . . . . . 1 Haulers Reinforced . | . . . . . . . Active Scanning Responses . | . . . . . . . Cargo Convoy Interrupts . | . . . . . . . Stealth | -11 -10 -10 -9 -9 -8 -7 --------- Run | Yrd Mat Min Mat Min Mat Fac Distress Signals . | . . . . . . . Communications Jammed . | . . . . . . . Distress Signals . | . . . . . . . Times Spotted 77 | . 7 6 31 6 13 14 Peak Tracking Total 10 | . 4 2 10 3 4 5 Tactical Retreats 5 | . . 1 4 . . . Traps | -11 -10 -10 -9 -9 -8 -7 ------- Run | Yrd Mat Min Mat Min Mat Fac Traps Triggered 2 | . . . 1 . 1 . Indirectly . | . . . . . . . Trap Hack Attempts . | . . . . . . . Triggered . | . . . . . . . Disarmed . | . . . . . . . Reprogrammed . | . . . . . . . Reused . | . . . . . . . Traps Extracted . | . . . . . . . Installed . | . . . . . . . Triggered . | . . . . . . . Machines | -11 -10 -10 -9 -9 -8 -7 ---------- Run | Yrd Mat Min Mat Min Mat Fac Machines Disabled 19 | . . 1 3 . 2 13 Max in Single Turn 5 | . . 1 1 . 1 5 Machines Repaired . | . . . . . . . Machines Dismantled . | . . . . . . . Machines Sabotaged . | . . . . . . . Overloaded Fab Kills . | . . . . . . . Hacking | -11 -10 -10 -9 -9 -8 -7 --------- Run | Yrd Mat Min Mat Min Mat Fac Machines Accessed 6 | . 1 . 2 . 2 1 Terminals 4 | . 1 . 1 . 2 . Fabricators 1 | . . . . . . 1 Repair Stations 1 | . . . 1 . . . Recycling Units . | . . . . . . . Scanalyzers . | . . . . . . . Garrison Access . | . . . . . . . Total Hacks 21 | . 3 . 10 . 5 3 Successful 9 | . 1 . 4 . 3 1 Failed 12 | . 2 . 6 . 2 2 Catastrophic 2 | . . . 1 . 1 . Database Lockouts . | . . . . . . . Manual . | . . . . . . . Terminals 13 | . 3 . 5 . 5 . Fabricators 3 | . . . . . . 3 Repair Stations 5 | . . . 5 . . . Recycling Units . | . . . . . . . Scanalyzers . | . . . . . . . Garrison Access . | . . . . . . . Terminal Hacks 5 | . 1 . 1 . 3 . Robot Analysis 1 | . . . . . 1 . Dispatch Records 2 | . 1 . . . 1 . Surveillance Status 1 | . . . . . 1 . Hauler Manifests 1 | . . . 1 . . . Fabricator Hacks 1 | . . . . . . 1 Network Status 1 | . . . . . . 1 Repair Station Hacks 3 | . . . 3 . . . Scan Component 1 | . . . 1 . . . Repair 1 | . . . 1 . . . Refit 1 | . . . 1 . . . Recycling Unit Hacks . | . . . . . . . Scanalyzer . | . . . . . . . Garrison Access Hacks . | . . . . . . . Unauthorized Hacks . | . . . . . . . Terminals . | . . . . . . . Fabricators . | . . . . . . . Repair Stations . | . . . . . . . Recycling Units . | . . . . . . . Scanalyzers . | . . . . . . . Garrison Access . | . . . . . . . Data Cores Recovered . | . . . . . . . Used . | . . . . . . . Hacking Detections 5 | . 1 . 2 . 1 1 Full Trace Events 2 | . . . 1 . . 1 Feedback Events . | . . . . . . . Feedback Blocked . | . . . . . . . Robot Schematics Acquired . | . . . . . . . Robots Built . | . . . . . . . Authchips . | . . . . . . . Time . | . . . . . . . Total Robot Build Rating . | . . . . . . . Part Schematics Acquired . | . . . . . . . Parts Built . | . . . . . . . Authchips . | . . . . . . . Time . | . . . . . . . Total Part Build Rating . | . . . . . . . Parts Repaired 1 | . . . 1 . . . Time 26 | . . . 26 . . . Parts Recycled . | . . . . . . . Recycled Matter . | . . . . . . . Retrieved Matter . | . . . . . . . Retrieved Components . | . . . . . . . Parts Scanalyzed . | . . . . . . . Part Schematics Acquired . | . . . . . . . Parts Damaged . | . . . . . . . Bothacking | -11 -10 -10 -9 -9 -8 -7 ------------ Run | Yrd Mat Min Mat Min Mat Fac Used RIF Installer . | . . . . . . . Robots Hacked . | . . . . . . . Non-combat . | . . . . . . . Combat . | . . . . . . . Robot Hacks Applied . | . . . . . . . Relay Couplers Released . | . . . . . . . Fabnet Peak Effective % . | . . . . . . . Robots Rewired . | . . . . . . . Allies Hacked . | . . . . . . . Hacks Repelled . | . . . . . . . Allies | -11 -10 -10 -9 -9 -8 -7 -------- Run | Yrd Mat Min Mat Min Mat Fac Total Allies 2 | . . . . 2 . . Largest Group 2 | . . . . 2 1 . Highest-Rated Group 51 | . . . . 51 20 . Highest-Rated Ally 31 | . . . . 31 20 . Total Orders . | . . . . . . . Ally Attacks 4 | . . . . 4 . . Total Damage 83 | . . . . 83 . . Kills 1 | . . . . 1 . . Allies Corrupted . | . . . . . . . Allies Melted . | . . . . . . . Intel | -11 -10 -10 -9 -9 -8 -7 ------- Run | Yrd Mat Min Mat Min Mat Fac Robot Analysis Total 1 | . . . . . 1 . Derelict Logs Recovered . | . . . . . . . Drone Launches . | . . . . . . . Drone Recoveries . | . . . . . . . Exploration | -11 -10 -10 -9 -9 -8 -7 ------------- Run | Yrd Mat Min Mat Min Mat Fac Turns Passed 2518 | 69 275 339 709 183 500 443 Spaces Moved 1441 | 50 194 247 401 116 298 135 Core 39 | 10 . . 1 . . 28 Treads . | . . . . . . . Legs 1385 | 40 194 247 400 116 298 90 Wheels . | . . . . . . . Hover . | . . . . . . . Flight 17 | . . . . . . 17 Fastest Speed 50 | 50 120 120 120 120 120 100 Average Speed 132 | 109 120 120 120 120 125 238 Slowest Speed 685 | 120 120 120 250 120 190 685 Overloaded Moves . | . . . . . . . Propulsion Burnouts . | . . . . . . . Robots Hopped . | . . . . . . . Cave-ins Triggered . | . . . . . . . Exploration Rate (%) 28 | 5 32 64 36 29 27 4 Regions Visited 6 Branch Regions 2 Pre-discovered Areas . | . . . . . . . Known Exits Taken 5 | . 1 1 1 1 1 . Unknown Exits Taken 1 | 1 . . . . . . Scrap Searched 2 | . . 1 . 1 . . Spaces Dug . | . . . . . . . Terrain Destroyed 145 | . . 12 85 . 46 2 Melee . | . . . . . . . Projectile 1 | . . . . . 1 . AOE 144 | . . 12 85 . 45 2 Terrain Rammed . | . . . . . . . Walls Destroyed . | . . . . . . . Machines Disabled . | . . . . . . . Actions | -11 -10 -10 -9 -9 -8 -7 --------- Run | Yrd Mat Min Mat Min Mat Fac Total 1812 | 61 221 269 555 138 371 197 Wait 83 | . 1 . 53 1 23 5 Move 1435 | 49 193 246 400 115 297 135 Hop . | . . . . . . . Pick Up 38 | 6 7 3 9 4 8 1 Fast Attach 32 | 6 1 . 11 1 3 10 Attach 22 | . 1 1 8 . 6 6 Detach 1 | . . . 1 . . . Swap 32 | . 1 3 13 3 8 4 Drop 34 | . 8 4 12 3 4 3 Fire 127 | . 9 12 40 11 22 33 Melee . | . . . . . . . Ram . | . . . . . . . Kick 8 | . . . 8 . . . Crush . | . . . . . . . Escape Stasis . | . . . . . . . Rewire . | . . . . . . . Trap . | . . . . . . . Miscellaneous . | . . . . . . . Route ------- -11/Scrapyard -10/Materials -10/Mines -9/Materials (discovered 2 exits: *Min x2) -9/Mines -8/Materials -7/Factory History --------- Turn | Location | Event 28 | -11/Scrapyard | Discovered new exit (range 15) 70 | -11/Scrapyard | Entered Materials 307 | -10/Materials | Build established: Mutant 334 | -10/Materials | Discovered new exit (range 8) 343 | -10/Materials | Identified exit to Mines 345 | -10/Materials | Entered Mines 454 | -10/Mines | Received a Rocket Launcher from a helpful Derelict 661 | -10/Mines | Discovered new exit (range 6) 681 | -10/Mines | Identified exit to Materials 684 | -10/Mines | Entered Materials 684 | -9/Materials | Evolved 2 slots: Propulsion x1, Utility x1 737 | -9/Materials | Repaired EM Pulse Gun? 872 | -9/Materials | Destroyed 9 combat bots 879 | -9/Materials | Lost 4 parts (1p2n1u) 948 | -9/Materials | Discovered new exit (range 13) 1068 | -9/Materials | Core integrity fell below 50% 1114 | -9/Materials | Lost 6 parts (1p2n1u2w) 1387 | -9/Materials | Discovered new exit (range 5) 1392 | -9/Materials | Identified exit to Mines 1393 | -9/Materials | Entered Mines 1509 | -9/Mines | Discovered new exit (range 15) 1574 | -9/Mines | Identified exit to Materials 1576 | -9/Mines | Entered Materials 1576 | -8/Materials | Accompanied by 1 ally 1576 | -8/Materials | Evolved 2 slots: Power x1, Weapon x1 1960 | -8/Materials | Lost 4 parts (2p2n) 2048 | -8/Materials | Discovered new exit (range 18) 2075 | -8/Materials | Identified exit to Factory 2076 | -8/Materials | Entered Factory 2076 | -7/Factory | Evolved 2 slots: Propulsion x1, Utility x1 2419 | -7/Factory | Garrison activated, responded to threat 2420 | -7/Factory | Core integrity fell below 50% 2478 | -7/Factory | Core integrity fell below 20% 2519 | -7/Factory | Destroyed by G-47 Trooper with Particle Gun Last Messages --------------- Destroyed Shotgun. Autogun destroyed. Destroyed Autogun. ALERT: Construction progress impeded, dispatching reinforcements to local area. Aluminum Leg destroyed. Prc. Grenade Launcher destroyed. Acquired Aluminum Leg. Visual Processing Unit destroyed. T-07 Excavator suffers critical hit (Burn). T-07 Excavator destroyed. Aluminum Leg destroyed. U-05 Engineer lays Concrete. U-05 Engineer destroyed. Pulse Rifle destroyed. R-06 Scavenger collects Particle Gun. Hvy. Assault Rifle destroyed. Autogun destroyed. Mic. Nuclear Core destroyed. Acquired Prc. Grenade Launcher. Map ----- +----------------------------------------------------+ | ????????????????????????????????????????????? | | ????????????????????????????????????????????? | | ????????????????????????????????????????????? | | ????????????????????????????????????????????? | | ????????????????????????????????????????????? | | ????????????????????????????????????????????? | | ????????????????????????????????????????????? | | ????????????????????????????????????????????? | | ????????????????????????????????????????????? | | ????????????????????????????????????????????? | | ????????????????????????????????????????????? | | ????????????????????????????????????????????? | | ?????????################???????????????????? | | ?????????# #???????????????????? | | ?????????# #?###########???????? | | ?????????# """"""""" #?# ????????? | | ?????????# #?# """"????????? | | ?????????# """"""""" #?# ! """"#???????? | | ?????????# #?# """"#???????? | | #####?###########+#+##+##?# """"#???????? | | + ?# T + #??# """"#???????? | | # ?# #### #### [ """"#???????? | | # ?# #??# + #???????? | | # # #??# #####+###########???????? | | # # * #??# # #??????????????? | | # ####+#??# # @ #??????????????? | | #^^^ #### #### # #??????????????? | | ^ ^ # #??????????????? | | ^ # ] #??????????????? | | """ # #??????????????? | | " "" # ] #??????????????? | | "%% "" # #??????????????? | | # T#####%" # ggg #??????????????? | | ###????#[ " """ #####g####??????????????? | | ???????# =""" """ #??????????????? | | ????#### """ """ #??????????????? | | ????#""" #??????????????? | | ????#"F" """ """ #??????????????? | | ????#" " #??????????????? | | ????#""" "" #####+####??????????????? | | ????#""" #????? %#??????????????? | | ????#### " #???? #??????????????? | | ???????# #??" #??????????????? | | ???????# " #?"" #??????????????? | | ???????# # #??????????????? | | ???????# "= """ ???????????????? | | ???????# % #""" ???????????????? | | ???????#! ! """ ????????????????? | | ???????# % [% # ????????????????? | | ???????# #########???????????????? | +----------------------------------------------------+ Best States ------------- Heat Dissipation 34 Energy Generation 25 Energy Capacity 300 Matter Stores 300 Matter Capacity 300 Sight Range 18 Robot Scan Range 15 Terrain Scan Density 10 Armor Coverage 225 Evasion (%) 55 Item Schematics ----------------- None Robot Schematics ------------------ None Fabricated ------------ Nothing Alien Tech Used ----------------- None Achievements -------------- None Challenges ------------ None Game ------ Seed CloakingClaymoresEngine Manual? 0 Play Time 00:31:01 Cumulative 6.2 hours Start 2024.04.02 @ 18:02:42 End 2024.04.02 @ 18:29:58 Sessions 1 Manual Loads 0 Difficulty Rogue Special Mode None Game No. 17 Rogue 17 Adventurer 0 Explorer 0 Win Type - Total 0 Types 0/0/0/0/0/0/0/0/0 Lore% 12 Gallery% 16 Achievement% 11 Wizard Run 0 Options --------- Layout 1 ASCII 0 Keyboard 0 Movement Mouse Keybinds 0 Fullscreen 1 Font 24/Smallcaps Map View 50x35 Zoom Use 0% Tactical HUD 0 Map Filters NONE Filters NONE Steam 1 RUN: 3f5b7dd0-d32c-4a58-947e-bb476217521b